bitfinex-derivatives/quotes_SOLF0:USTF0_20251101
["timestamp","ask_amount","ask_price","bid_price","bid_amount"]
[1762038400755,1.83069682,186.11,186.08,2.68]
[1762038400956,1.83069682,186.11,186.1,2.68]
[1762038401259,1.83069682,186.11,186.1,7.96720933]
[1762038403766,4.53069682,186.11,186.1,5.28720933]
[1762038403966,2.7,186.1,186.0,2.68]
[1762038404166,1.83069682,186.05,186.0,2.68]
[1762038406869,6.71390964,186.12,186.0,2.68]
[1762038406870,1.83069682,186.02,186.0,2.68]
[1762038415872,1.83069682,186.02,186.01,4.85616818]
[1762038416173,1.83069682,186.02,186.01,7.53616818]
[1762038420883,2.7,186.11,186.02,2.68]
[1762038421183,2.7,186.11,186.04,2.68]
[1762038421184,1.83069682,186.06,186.04,2.68]
[1762038421392,1.83069682,186.06,186.05,7.53616818]
[1762038424988,1.83069682,186.06,186.05,2.68]
[1762038427300,1.83069682,186.06,186.05,7.71556173]
[1762038427697,1.83069682,186.09,186.05,7.71556173]
[1762038427903,6.66849682,186.12,186.07,2.9]
[1762038428099,6.66849682,186.12,186.09,2.9]
[1762038428299,6.66849682,186.12,186.11,2.9]
[1762038428500,6.66849682,186.12,186.11,7.93556173]
[1762038429699,9.41849682,186.12,186.11,5.03556173]
[1762038429900,2.75,186.11,186.08,2.9]
[1762038430099,2.75,186.11,186.09,5.03326917]
[1762038430299,2.75,186.11,186.1,5.03326917]
[1762038430896,2.75,186.11,186.1,5.03298283]
[1762038431096,4.58069682,186.12,186.1,7.93298283]
[1762038431292,2.75,186.15,186.12,2.9]
[1762038431490,2.75,186.15,186.06,1.83069682]
[1762038431692,2.75,186.15,186.09,2.9]
[1762038431899,2.75,186.13,186.1,5.03152903]
[1762038432101,2.75,186.11,186.07,2.9]
[1762038432304,2.75,186.11,186.08,7.93227043]
[1762038432510,2.75,186.11,186.09,5.03227043]
[1762038432692,1.83069682,186.14,186.11,2.9]
[1762038433192,4.58069682,186.14,186.11,2.9]
[1762038435307,2.75,186.14,186.11,2.9]
[1762038436006,7.5873,186.14,186.11,2.9]
[1762038438994,4.8376,186.13,186.11,2.9]
[1762038439607,7.5876,186.13,186.11,2.9]
[1762038442004,4.8376,186.13,186.11,2.9]
[1762038444307,7.7576,186.13,186.11,2.9]
[1762038444913,4.8379,186.11,186.05,2.88]
[1762038445113,4.8379,186.11,186.07,2.88]
[1762038445315,4.8379,186.11,186.09,2.88]
[1762038445614,7.7579,186.11,186.1,5.02376741]
[1762038446414,4.8379,186.11,186.1,5.02376741]
[1762038447814,4.8379,186.11,186.1,7.90376741]
[1762038449606,9.58809682,186.13,186.1,7.90376741]
[1762038449803,9.58809682,186.13,186.1,2.88]
[1762038450007,2.92,186.12,186.1,2.88]
[1762038453419,4.75069682,186.13,186.1,2.88]
[1762038455111,4.75069682,186.13,186.11,5.07494447]
[1762038455311,4.75069682,186.13,186.1,2.88]
[1762038455514,4.75069682,186.13,186.11,5.07559383]
[1762038455713,4.75069682,186.13,186.1,2.88]
[1762038455921,4.75069682,186.13,186.11,5.07559383]
[1762038456123,4.75069682,186.13,186.1,2.88]
[1762038456325,4.75069682,186.13,186.11,5.07604934]
[1762038456513,4.75069682,186.13,186.1,2.88]
[1762038456717,4.75069682,186.13,186.11,5.07618325]
[1762038457011,2.8,186.12,186.1,2.88]
[1762038457216,2.8,186.12,186.11,5.07618325]
[1762038464426,2.8,186.12,186.11,7.93618325]
[1762038465623,2.8,186.12,186.11,5.07618325]
[1762038468133,2.8,186.12,186.11,7.93618325]
[1762038468733,2.8,186.12,186.11,5.07618325]
[1762038469332,2.8,186.13,186.11,7.93618325]
[1762038469531,2.8,186.13,186.12,5.07618325]
[1762038471330,2.86082228,186.14,186.12,7.93618325]
[1762038471536,2.86082228,186.14,186.13,2.86]
[1762038471730,2.86082228,186.14,186.13,7.95636756]
[1762038472529,6.71390964,186.15,186.14,2.86]
[1762038472737,6.71390964,186.15,186.14,7.95636756]
[1762038476135,6.71390964,186.16,186.14,7.95636756]
[1762038476329,6.71390964,186.16,186.15,7.95636756]
[1762038477138,9.57473192,186.17,186.15,7.95636756]
[1762038477337,9.57473192,186.17,186.16,7.95636756]
[1762038477745,12.37473192,186.17,186.16,5.09636756]
[1762038480940,9.57473192,186.17,186.16,7.95636756]
[1762038481141,6.71390964,186.2,186.17,2.86]
[1762038481443,15.65108801,186.23,186.19,2.86]
[1762038481444,6.71390964,186.22,186.19,2.86]
[1762038481648,6.71390964,186.22,186.21,2.86]
[1762038482034,9.51390964,186.22,186.1,2.86]
[1762038482341,9.51390964,186.22,186.12,2.86]
[1762038482541,9.51390964,186.22,186.14,2.86]
[1762038482732,9.51390964,186.22,186.16,2.86]
[1762038482937,9.51390964,186.22,186.18,2.86]
[1762038483136,9.51390964,186.22,186.2,2.86]
[1762038484347,2.8,186.22,186.2,2.86]
[1762038484854,9.57473192,186.23,186.2,2.86]
[1762038485152,2.86082228,186.23,186.22,2.86]
[1762038486744,2.67,186.24,186.22,2.86]
[1762038487243,2.67,186.24,186.12,2.68]
[1762038487446,2.67,186.24,186.14,2.68]
[1762038487643,2.67,186.24,186.16,2.68]
[1762038487844,2.67,186.24,186.18,2.68]
[1762038488048,2.67,186.24,186.2,2.68]
[1762038493051,5.53082228,186.23,186.2,2.68]
[1762038498351,2.67,186.22,186.2,2.68]
[1762038498946,2.67,186.22,186.12,2.68]
[1762038499147,2.86082228,186.23,186.14,2.68]
[1762038499148,2.67,186.17,186.14,2.68]
[1762038499350,2.67,186.17,186.13,5.01827013]
[1762038499351,2.67,186.17,186.11,2.68]
[1762038499657,5.53082228,186.15,186.13,2.68]
[1762038499858,2.86082228,186.15,186.13,2.68]
[1762038502254,5.70082228,186.15,186.13,2.68]
[1762038502757,2.86082228,186.15,186.13,2.68]
[1762038503761,5.70082228,186.15,186.13,2.68]
[1762038506262,2.86082228,186.15,186.13,2.68]
[1762038506459,2.86082228,186.18,186.13,2.68]
[1762038506657,2.86082228,186.18,186.15,2.74]
[1762038507053,5.70082228,186.21,186.15,2.74]
[1762038507358,2.86082228,186.21,186.15,2.74]
[1762038508367,5.70082228,186.21,186.17,2.74]
[1762038514159,2.86082228,186.21,186.17,2.74]
[1762038514570,2.86082228,186.21,186.19,2.74]
[1762038514877,2.84,186.23,186.19,2.74]
[1762038517271,1.82889634,186.22,186.19,2.74]
[1762038517662,4.53889634,186.22,186.19,2.74]
[1762038520074,4.53889634,186.22,186.2,5.08815734]
[1762038520277,4.53889634,186.22,186.2,2.7]
[1762038521372,4.53889634,186.22,186.12,4.8376]
[1762038521373,2.71,186.21,186.13,2.7]
[1762038521570,1.82889634,186.19,186.15,2.7]
[1762038521770,1.82889634,186.19,186.17,2.7]
[1762038521972,1.82889634,186.19,186.18,7.79008128]
[1762038527171,1.82889634,186.19,186.18,5.09008128]
[1762038527377,2.71,186.18,186.08,2.7]
[1762038527577,16.14,186.25,186.08,2.7]
[1762038527578,1.82889634,186.13,186.08,2.7]
[1762038527776,4.53889634,186.13,186.08,2.7]
[1762038529369,2.71,186.12,186.08,2.7]
[1762038539383,2.71,186.12,186.09,7.72237177]
[1762038539682,2.71,186.12,186.1,5.02237177]
[1762038539876,2.71,186.12,186.11,5.02237177]
[1762038540376,2.71,186.12,186.06,2.7]
[1762038540569,2.71,186.12,186.07,7.72330874]
[1762038540770,2.71,186.12,186.08,5.02330874]
[1762038540975,4.53889634,186.1,186.09,5.02330874]
[1762038546086,1.82889634,186.1,186.09,7.72330874]
[1762038548087,4.72889634,186.1,186.09,5.02330874]
[1762038548289,2.9,186.09,186.03,14.66]
[1762038548488,2.9,186.06,186.04,2.8]
[1762038548694,2.9,186.06,186.0,0.93538329]
[1762038548695,2.9,186.06,186.01,2.8]
[1762038553393,2.9,186.06,186.0,0.93538329]
[1762038554096,2.9,186.03,186.0,0.93538329]
[1762038554301,1.82889634,186.01,186.0,2.8]
[1762038554495,2.9,186.03,186.0,2.8]
[1762038555583,2.9,186.07,186.0,2.8]
[1762038555785,4.72889634,186.07,186.0,2.8]
[1762038555989,9.74440742,186.1,186.0,2.8]
[1762038556293,4.72889634,186.1,186.0,2.8]
[1762038556894,2.9,186.09,186.0,2.8]
[1762038557993,1.82889634,186.1,186.0,2.8]
[1762038558594,1.82889634,186.1,186.01,2.8]
[1762038558895,1.82889634,186.11,186.01,2.8]
[1762038559094,4.72889634,186.11,186.01,2.8]
[1762038559997,4.72889634,186.11,186.03,2.8]
[1762038560197,1.82889634,186.11,186.05,2.8]
[1762038560401,2.9,186.1,186.07,2.8]
[1762038560603,2.9,186.1,186.08,5.02507687]
[1762038560905,4.72889634,186.11,186.07,2.8]
[1762038561106,4.72889634,186.11,186.08,5.02477872]
[1762038561299,4.72889634,186.11,186.07,2.8]
[1762038561496,4.72889634,186.11,186.08,5.02565541]
[1762038561804,4.72889634,186.11,186.08,2.79]
[1762038562193,4.72889634,186.11,186.09,5.02554888]
[1762038562400,4.72889634,186.11,186.08,2.79]
[1762038562601,4.72889634,186.11,186.09,5.02631135]
[1762038562905,4.72889634,186.11,186.08,2.79]
[1762038563105,4.72889634,186.11,186.09,7.81601309]
[1762038563410,4.72889634,186.11,186.09,2.79]
[1762038564002,5.01551108,186.15,186.09,2.79]
[1762038564003,1.82889634,186.14,186.09,2.79]
[1762038565396,9.51440742,186.16,186.11,2.79]
[1762038565594,4.49889634,186.16,186.11,2.79]
[1762038566806,2.67,186.15,186.11,2.79]
[1762038567199,2.67,186.15,186.12,7.81969092]
[1762038567401,2.67,186.15,186.12,2.79]
[1762038571212,2.67,186.15,186.13,5.03674776]
[1762038571513,2.67,186.15,186.12,2.79]
[1762038571811,2.67,186.15,186.13,5.03674776]
[1762038572005,2.67,186.15,186.12,2.79]
[1762038572205,2.67,186.15,186.13,5.03674776]
[1762038572408,1.82889634,186.14,186.12,2.79]
[1762038572615,4.49889634,186.14,186.13,5.03867546]
[1762038575000,1.82889634,186.14,186.13,5.03867546]
[1762038575311,1.82889634,186.14,186.12,2.79]
[1762038576417,4.49889634,186.14,186.12,2.79]
[1762038577312,2.67,186.14,186.12,2.79]
[1762038578016,2.7,186.15,186.12,2.79]
[1762038586421,2.7,186.15,186.09,2.87]
[1762038586625,12.8503959,186.21,186.09,2.87]
[1762038586626,2.7,186.13,186.1,4.91854735]
[1762038586826,5.56013017,186.11,186.09,2.87]
[1762038587016,5.56013017,186.11,186.1,4.91928546]
[1762038587213,2.86013017,186.12,186.1,7.78928546]
[1762038587416,2.86013017,186.12,186.1,2.87]
[1762038587624,5.56013017,186.12,186.1,2.87]
[1762038591921,2.86013017,186.12,186.1,2.87]
[1762038592923,5.56013017,186.12,186.1,2.87]
[1762038597135,5.56013017,186.12,186.11,4.92051244]
[1762038599942,2.86013017,186.12,186.11,7.79051244]
[1762038600544,10.57564125,186.16,186.12,2.87]
[1762038600739,10.57564125,186.16,186.14,2.87]
[1762038601241,2.7,186.15,186.05,2.87]
[1762038601442,2.7,186.15,186.07,2.87]
[1762038601641,2.7,186.15,186.09,2.87]
[1762038601845,2.7,186.15,186.11,2.87]
[1762038602049,2.7,186.15,186.12,7.79439109]
[1762038602241,7.71551108,186.15,186.13,4.92439109]
[1762038602432,7.71551108,186.14,186.06,4.839]
[1762038602639,2.7,186.12,186.08,2.87]
[1762038602834,2.7,186.12,186.1,2.87]
[1762038603041,2.7,186.12,186.11,4.92725459]
[1762038605147,2.86013017,186.13,186.11,7.79725459]
[1762038605340,2.86013017,186.13,186.12,7.79725459]
[1762038607648,6.71390964,186.16,186.13,2.75]
[1762038607649,2.86,186.16,186.13,2.75]
[1762038607850,2.86,186.16,186.14,7.67725459]
[1762038608047,2.86,186.16,186.15,4.92725459]
[1762038608442,9.57403981,186.17,186.15,4.92725459]
[1762038608642,12.43403981,186.17,186.16,4.92725459]
[1762038610850,2.86,186.16,186.07,2.75]
[1762038611048,2.86,186.13,186.07,2.75]
[1762038622057,2.86,186.13,186.03,2.83]
[1762038622947,2.86,186.13,186.05,2.83]
[1762038623156,2.86,186.13,186.06,7.55976255]
[1762038623359,2.86,186.13,186.07,4.72976255]
[1762038623559,2.86,186.13,186.08,4.72976255]
[1762038623756,2.86,186.13,186.09,4.72976255]
[1762038624058,2.86,186.13,186.1,4.72976255]
[1762038624259,2.86,186.13,186.11,4.72976255]
[1762038624461,2.86,186.13,186.06,2.83]
[1762038624651,2.86,186.13,186.07,4.7418408]
[1762038624848,2.86,186.13,186.08,4.7418408]
[1762038625048,2.86,186.13,186.09,4.7418408]
[1762038625251,2.86,186.13,186.1,4.7418408]
[1762038625455,2.86,186.13,186.11,4.7418408]
[1762038625660,2.86,186.13,186.06,2.83]
[1762038625860,2.86,186.13,186.07,4.74147917]
[1762038626057,2.86,186.13,186.08,4.74147917]
[1762038626260,2.86,186.13,186.09,4.74147917]
[1762038626464,2.86,186.13,186.1,4.74147917]
[1762038626764,2.86,186.13,186.11,4.74147917]
[1762038626955,2.86,186.13,186.06,2.83]
[1762038627156,2.86,186.13,186.07,4.74158144]
[1762038627356,2.86,186.13,186.08,4.74158144]
[1762038627558,2.86,186.13,186.09,4.74158144]
[1762038627765,2.86,186.13,186.1,4.74158144]
[1762038628062,2.86,186.13,186.11,4.74158144]
[1762038628366,2.86,186.13,186.06,2.83]
[1762038628554,2.86,186.13,186.07,4.74184248]
[1762038628756,2.86,186.13,186.08,4.74184248]
[1762038628957,2.86,186.13,186.09,4.74184248]
[1762038629257,2.86,186.13,186.1,4.74184248]
[1762038629453,2.86,186.13,186.11,4.74184248]
[1762038629658,2.86,186.13,186.06,2.83]
[1762038629859,2.86,186.13,186.07,4.74158233]
[1762038630067,2.86,186.13,186.08,4.74158233]
[1762038630266,2.86,186.13,186.09,4.74158233]
[1762038630564,2.86,186.13,186.1,4.74158233]
[1762038630765,2.86,186.13,186.11,4.74158233]
[1762038631066,2.86,186.13,186.06,2.83]
[1762038631260,2.86,186.13,186.07,4.73964124]
[1762038631461,2.86,186.13,186.08,7.56964124]
[1762038631661,2.86,186.13,186.09,4.73964124]
[1762038631862,2.86,186.13,186.08,2.83]
[1762038632059,2.86,186.13,186.09,4.73963958]
[1762038632260,2.86,186.13,186.08,2.83]
[1762038632566,2.86,186.13,186.09,4.73941771]
[1762038632764,2.86,186.13,186.08,2.83]
[1762038633065,2.86,186.13,186.09,4.73941771]
[1762038633265,2.86,186.13,186.08,2.83]
[1762038633466,2.86,186.13,186.09,4.73921484]
[1762038633670,2.86,186.13,186.08,2.83]
[1762038633968,2.86,186.13,186.09,4.73921283]
[1762038634158,2.86,186.13,186.08,2.83]
[1762038634361,2.86,186.13,186.09,4.7390232]
[1762038634560,2.86,186.13,186.08,2.83]
[1762038634761,7.97110006,186.11,186.09,4.7390232]
[1762038634961,2.94,186.1,186.08,2.83]
[1762038635166,2.94,186.1,186.09,4.73902154]
[1762038651788,2.94,186.1,186.09,7.41902154]
[1762038657185,7.97110006,186.1,186.09,7.41902154]
[1762038658889,2.94,186.1,186.09,7.41902154]
[1762038659887,7.97110006,186.1,186.09,7.41902154]
[1762038660291,2.94,186.1,186.09,7.41902154]
[1762038661092,7.97110006,186.1,186.09,7.41902154]
[1762038665700,2.94,186.1,186.09,7.41902154]
[1762038666083,7.97110006,186.1,186.09,7.41902154]
[1762038666599,5.03110006,186.1,186.09,7.41902154]
[1762038672295,5.03110006,186.1,186.09,7.50451174]
[1762038687703,5.03110006,186.1,186.09,2.68]
[1762038687902,5.03110006,186.1,186.09,7.50438841]
[1762038693413,2.84,186.11,186.09,7.50438841]
[1762038693599,7.87828983,186.1,186.01,5.00627109]
[1762038693800,7.87845852,186.08,186.03,2.82]
[1762038694002,2.84,186.07,186.03,2.82]
[1762038694804,2.84,186.06,186.04,4.89103729]
[1762038695105,2.84,186.06,186.05,4.89103729]
[1762038698015,2.84,186.06,186.03,2.82]
[1762038698209,2.84,186.06,186.04,7.91951243]
[1762038698423,2.84,186.06,186.05,5.00951243]
[1762038703811,2.84,186.05,186.01,2.91]
[1762038704018,2.84,186.05,186.02,7.91418277]
[1762038704213,2.84,186.05,186.03,5.00418277]
[1762038704414,2.84,186.05,186.04,5.00418277]
[1762038704611,5.03845852,186.06,186.05,2.91]
[1762038704811,5.03845852,186.07,186.06,2.91]
[1762038705314,7.87845852,186.07,185.98,14.58]
[1762038705620,7.87845852,186.07,186.0,2.91]
[1762038705913,7.87845852,186.07,186.02,2.91]
[1762038706219,7.87845852,186.07,186.04,2.91]
[1762038706426,2.84,186.06,186.04,2.91]
[1762038706621,2.84,186.05,185.99,2.91]
[1762038706824,2.84,186.05,186.01,2.91]
[1762038707009,2.84,186.05,186.02,7.91234577]
[1762038707213,2.84,186.05,186.03,5.00234577]
[1762038707417,2.84,186.05,186.02,2.91]
[1762038707621,2.84,186.05,186.03,5.00142515]
[1762038707815,2.84,186.05,186.02,2.91]
[1762038708016,2.84,186.05,186.03,5.00142515]
[1762038708217,2.84,186.05,186.02,2.91]
[1762038708418,2.84,186.05,186.03,5.00038659]
[1762038708618,2.84,186.05,186.02,2.91]
[1762038708818,2.84,186.05,186.03,5.00038659]
[1762038709018,2.84,186.05,186.02,2.91]
[1762038709218,2.84,186.05,186.03,5.00038659]
[1762038709419,2.84,186.05,186.02,2.91]
[1762038709719,2.84,186.05,186.03,4.99937897]
[1762038709919,2.84,186.05,186.02,2.91]
[1762038710119,2.84,186.05,186.03,4.99937915]
[1762038710320,2.84,186.05,186.02,2.91]
[1762038710523,2.84,186.05,186.03,4.99887976]
[1762038710720,2.84,186.05,186.02,2.91]
[1762038710921,2.84,186.05,186.03,4.99887976]
[1762038711123,2.84,186.05,186.02,2.91]
[1762038711422,2.84,186.05,186.03,4.99756001]
[1762038711722,2.84,186.05,186.02,2.91]
[1762038711922,2.84,186.05,186.03,7.90781079]
[1762038712120,2.84,186.05,186.03,2.91]
[1762038713326,2.84,186.05,186.01,2.91]
[1762038713519,2.84,186.05,186.02,4.99736372]
[1762038713721,2.84,186.05,186.03,4.99736372]
[1762038713930,2.84,186.05,186.01,2.91]
[1762038714121,2.84,186.05,186.02,4.94564153]
[1762038714324,2.84,186.05,186.01,2.91]
[1762038714525,2.84,186.05,186.02,4.94494497]
[1762038714718,2.84,186.05,186.01,2.91]
[1762038714923,2.84,186.05,186.02,4.94494689]
[1762038715217,2.84,186.05,186.01,2.91]
[1762038715422,2.84,186.05,186.02,4.94493484]
[1762038715622,2.84,186.05,186.01,2.91]
[1762038715830,2.84,186.05,186.02,4.94493484]
[1762038716031,2.84,186.05,186.01,2.91]
[1762038716222,2.84,186.05,186.02,4.94493484]
[1762038716423,2.84,186.05,186.01,2.91]
[1762038716723,2.84,186.05,186.02,4.94464966]
[1762038716918,2.84,186.05,186.01,2.91]
[1762038717127,2.84,186.05,186.02,4.94452739]
[1762038717321,2.84,186.05,186.01,2.91]
[1762038717630,2.84,186.05,186.02,4.94433005]
[1762038717830,2.84,186.05,186.01,2.91]
[1762038718031,2.84,186.04,185.98,2.91]
[1762038718235,2.84,186.03,185.99,7.85443109]
[1762038718431,2.84,186.03,186.0,4.94443109]
[1762038718727,2.84,186.02,185.96,2.91]
[1762038718932,2.84,186.02,185.97,7.85561263]
[1762038719128,2.84,186.02,185.98,4.94561263]
[1762038719328,2.84,186.01,185.94,2.91]
[1762038719530,2.84,186.01,185.96,2.91]
[1762038719731,2.84,186.01,185.97,7.85487542]
[1762038719929,2.84,186.01,185.97,2.91]
[1762038721440,2.84,186.01,185.92,2.91]
[1762038721626,2.84,185.99,185.93,4.94432906]
[1762038721828,2.84,185.98,185.94,4.94432906]
[1762038722031,2.84,185.98,185.92,2.91]
[1762038722328,2.84,185.98,185.93,4.94534274]
[1762038722630,2.84,185.98,185.88,2.91]
[1762038722835,2.84,185.97,185.9,2.91]
[1762038723027,2.84,185.97,185.91,4.94311142]
[1762038723227,2.84,185.97,185.92,4.94311142]
[1762038723427,2.84,185.97,185.9,2.91]
[1762038723625,2.84,185.97,185.92,2.91]
[1762038724130,2.84,185.97,185.87,10.27916899]
[1762038724434,2.84,185.96,185.89,2.91]
[1762038724635,2.84,185.96,185.9,4.93757461]
[1762038724937,2.84,185.96,185.89,2.91]
[1762038725936,5.03845852,185.98,185.89,2.91]
[1762038726131,7.87845852,185.98,185.89,2.91]
[1762038726435,2.84,185.97,185.89,2.91]
[1762038731727,2.86,185.95,185.89,2.91]
[1762038735737,4.8433,185.91,185.89,2.91]
[1762038739848,7.7033,185.91,185.89,2.91]
[1762038741950,4.8433,185.91,185.89,2.91]
[1762038744847,7.5233,185.91,185.89,2.91]
[1762038745156,4.8433,185.91,185.89,2.91]
[1762038745359,7.5233,185.91,185.89,2.91]
[1762038749857,4.8433,185.91,185.89,2.91]
[1762038750159,2.68,185.96,185.89,2.91]
[1762038752453,4.843,185.92,185.89,2.91]
[1762038762167,4.843,185.92,185.91,2.88]
[1762038764275,4.843,185.92,185.91,7.67322612]
[1762038773978,7.623,185.92,185.91,7.67322612]
[1762038774485,4.843,185.92,185.91,7.67322612]
[1762038780576,5.00334751,185.94,185.92,2.88]
[1762038781987,9.84584751,185.94,185.92,2.88]
[1762038783382,9.84584751,185.94,185.93,7.68153691]
[1762038784392,5.00334751,185.94,185.93,7.68153691]
[1762038784583,7.78334751,185.95,185.93,7.68153691]
[1762038784783,5.00334751,185.94,185.93,2.88]
[1762038784976,5.00334751,185.94,185.93,7.68216316]
[1762038785288,5.00334751,185.94,185.93,2.88]
[1762038787279,5.00334751,185.94,185.93,7.62985262]
[1762038787480,5.00334751,185.95,185.94,2.91]
[1762038787686,5.00334751,185.96,185.95,2.91]
[1762038787886,5.00334751,185.96,185.95,7.65985262]
[1762038788393,5.00334751,185.97,185.96,2.91]
[1762038788794,2.69,185.98,185.96,2.91]
[1762038788989,7.5314,185.98,185.96,2.91]
[1762038791900,5.03277936,185.97,185.96,2.91]
[1762038800801,7.72277936,185.97,185.96,2.91]
[1762038801202,12.56447936,185.97,185.89,2.91]
[1762038801402,12.56447936,185.97,185.91,2.78]
[1762038801707,12.56447936,185.97,185.93,2.78]
[1762038801909,2.71,185.94,185.9,2.16399058]
[1762038802098,7.74277936,185.94,185.9,2.16399058]
[1762038802296,5.03277936,185.95,185.9,2.16399058]
[1762038802498,7.74277936,185.96,185.9,2.16399058]
[1762038802700,4.8424,185.94,185.9,2.16399058]
[1762038813918,4.8424,185.94,185.91,4.8617325]
[1762038814109,4.8424,185.94,185.92,7.6417325]
[1762038814306,4.8424,185.94,185.93,4.8617325]
[1762038815419,7.74277936,185.96,185.94,2.78]
[1762038815619,7.74277936,185.96,185.95,4.8617325]
[1762038818122,2.71,185.96,185.95,4.8617325]
[1762038818515,7.74339278,185.96,185.95,4.8617325]
[1762038819313,9.99026573,186.04,185.96,2.69]
[1762038819522,13.38622844,186.09,185.92,25.5]
[1762038819523,9.99026573,186.07,185.98,2.69]
[1762038819713,9.99026573,186.07,185.99,7.5517325]
[1762038819914,9.99026573,186.07,186.0,7.5517325]
[1762038820115,16.15,186.11,186.01,9.17139835]
[1762038820421,16.15,186.11,186.0,2.69]
[1762038820612,16.15,186.11,186.01,4.87682678]
[1762038820814,16.15,186.11,186.0,2.69]
[1762038820815,16.15,186.11,185.96,4.98039517]
[1762038821010,16.15,186.11,185.97,11.87387118]
[1762038821208,16.15,186.11,185.98,9.18387118]
[1762038821420,1.88,186.1,185.99,9.18387118]
[1762038821623,1.88,186.1,186.0,4.8766004]
[1762038821815,1.88,186.1,185.97,2.69]
[1762038822014,1.88,186.1,185.99,2.69]
[1762038822317,1.88,186.1,186.0,4.87564944]
[1762038822616,1.88,186.1,185.99,2.69]
[1762038822817,1.88,186.1,186.0,4.87451236]
[1762038823116,1.88,186.1,185.99,2.69]
[1762038823308,1.88,186.1,186.0,4.87360904]
[1762038823512,1.88,186.1,185.99,2.69]
[1762038823721,1.88,186.1,186.0,4.87360904]
[1762038823925,1.88,186.1,185.99,2.69]
[1762038824120,1.88,186.1,186.0,4.87360904]
[1762038824320,1.88,186.1,185.99,2.69]
[1762038824521,1.88,186.1,186.0,4.87302289]
[1762038824717,1.88,186.1,185.99,2.69]
[1762038824918,1.88,186.1,186.0,4.87302289]
[1762038825225,1.88,186.1,185.99,2.69]
[1762038825420,1.88,186.1,186.01,2.69]
[1762038825922,1.88,186.09,186.01,2.69]
[1762038826626,1.88,186.05,186.01,2.69]
[1762038827419,4.8397,186.04,185.98,2.69]
[1762038827612,1.88,186.03,186.0,2.69]
[1762038838827,4.8397,186.04,186.0,2.69]
[1762038839328,6.7197,186.04,186.0,2.69]
[1762038842338,1.88,186.03,186.0,2.69]
[1762038842539,1.88,186.03,185.95,4.2955561]
[1762038842739,1.88,186.03,185.97,2.69]
[1762038842931,1.88,186.03,185.99,2.69]
[1762038843131,1.88,186.03,186.0,4.86275034]
[1762038843430,1.88,186.03,185.99,2.69]
[1762038845450,1.88,186.03,186.0,7.7267437]
[1762038845651,1.88,186.03,186.0,2.69]
[1762038847447,1.88,186.03,185.96,4.31070854]
[1762038847448,1.88,186.03,185.98,2.75]
[1762038847646,1.88,186.03,185.99,7.78805918]
[1762038847847,1.88,186.03,185.99,2.75]
[1762038849153,1.88,186.03,185.96,2.75]
[1762038849357,1.88,186.03,185.97,5.03988372]
[1762038849659,1.88,186.03,185.96,2.75]
[1762038849850,1.88,186.03,185.97,5.04078258]
[1762038850046,1.88,186.03,185.98,7.79067205]
[1762038850247,1.88,186.03,185.98,2.75]
[1762038854158,1.88,186.03,186.0,2.75]
[1762038857554,1.88,186.03,185.97,2.75]
[1762038857761,1.88,186.03,185.98,7.79626446]